Cogmind - Beta 16.1 @@@ ROGUE MODE // 2026.04.30 @ 07:50:23 Player: coopco Result: Destroyed by CH-AZ4(R) with Subdweller Shrapnel Launcher Performance ------------- Evolutions (0) 0 Regions Visited (3) 600 Robots Destroyed (12) 60 Value Destroyed (283) 283 Prototype IDs (0) 0 Alien Tech Used (0) 0 Bonus (0) 0 TOTAL SCORE: 943 Bonus ------- None Cogmind --------- Core Integrity 0/250 Matter 297/300 Energy 125/125 System Corruption 0% Temperature Cool (0) Movement Rolling (100) Location -10/Subcaves Parts ------- > --- POWER (1) -------- Light Ion Engine > --- PROPULSION (2) --- Compact Wheel > --- UTILITY (2) ------ Small Storage Unit Signal Interpreter > --- WEAPON (2) ------- Medium Laser Assault Rifle > --- INVENTORY (8) ---- Light Ion Engine Improved Hover Unit Improved Hover Unit Improved Hover Unit Improved Hover Unit Improved Heat Sink Weight Redist. System Medium Laser Peak State ------------ > --- POWER ------------ Light Ion Engine > --- PROPULSION ------- Wheel Compact Wheel > --- UTILITY ---------- Small Storage Unit Signal Interpreter > --- WEAPON ----------- Medium Laser Medium Laser > --- INVENTORY -------- Light Ion Engine Improved Hover Unit Improved Hover Unit Improved Hover Unit Improved Hover Unit Weight Redist. System Medium Laser Assault Rifle [Rating: 8] Favorites ----------- Power Light Ion Engine Engine Light Ion Engine Propulsion Compact Wheel Wheel Compact Wheel Utility Small Storage Unit Storage Small Storage Unit Processor Signal Interpreter Weapon Medium Laser Energy Gun Medium Laser Ballistic Gun Assault Rifle Build | -11 -10 -10 -10 ------- Run | Yrd Mat Min Sub Slots Evolved . | . . . . Power . | . . . . Propulsion . | . . . . Utility . | . . . . Weapon . | . . . . Parts Attached 11 | 6 2 3 . Power 3 | 1 1 1 . Engine 3 | 1 1 1 . Core . | . . . . Reactor . | . . . . Propulsion 3 | 2 1 . . Treads . | . . . . Leg . | . . . . Wheel 3 | 2 1 . . Hover . | . . . . Flight . | . . . . Utility 2 | 1 . 1 . Device . | . . . . Storage 1 | 1 . . . Processor 1 | . . 1 . Hackware . | . . . . Protection . | . . . . Artifact . | . . . . Weapon 3 | 2 . 1 . Energy Gun 2 | 2 . . . Energy Cannon . | . . . . Ballistic Gun 1 | . . 1 . Ballistic Cannon . | . . . . Launcher . | . . . . Special Weapon . | . . . . Impact Weapon . | . . . . Slashing Weapon . | . . . . Piercing Weapon . | . . . . Special Melee Weapon . | . . . . Unidentified Prototypes . | . . . . Parts Lost 2 | . . 1 1 Power . | . . . . Propulsion 1 | . . . 1 Utility . | . . . . Weapon 1 | . . 1 . Highest Loss Streak 1 | . . 1 1 To Critical Strikes . | . . . . Average Backups 7 | 2 6 7 8 Power . | . 1 1 1 Propulsion 3 | . 3 4 4 Utility 1 | . . 1 2 Weapon 1 | . 1 1 1 Tool/Special . | . . . . Unused Backups 11 | . 4 . 7 Power 1 | . . . 1 Propulsion 6 | . 2 . 4 Utility 2 | . 1 . 1 Weapon 2 | . 1 . 1 Tool/Special . | . . . . Average Slot Usage (%) 92 | . 85 92 100 Engine 14 | . 14 14 14 Wheel 28 | . 28 28 28 Storage 14 | . 14 14 14 Processor 7 | . . 7 14 Energy Gun 23 | . 28 26 14 Ballistic Gun 4 | . . 1 14 Peak Build Rating 8 | 6 7 8 8 Average Rating 7 | 4 6 7 7 On Entrance 5 | . 6 7 8 Avg Prop Armor Cover (%) . | . . . . Naked Turns . | . . . . Heaviest Build 12 | 12 12 12 12 Greatest Support 26 | 26 26 26 26 Greatest Overweight (x) . | . . . . Average Overweight (x) . | . . . . Largest Inventory Capacity 8 | 8 8 8 8 Average Capacity 7 | 6 8 8 8 Most Carried 8 | 4 8 8 8 Average Carried 7 | 2 6 7 8 Final Capacity 8 | 8 8 8 8 Final Carried 8 | 4 8 8 8 Class Distribution -------------------- 100% | Mutant Dominant Class ---------------- Mutant | -10/Materials Mutant | -10/Mines Mutant | -10/Subcaves Resources | -11 -10 -10 -10 ----------- Run | Yrd Mat Min Sub Matter Collected 343 | 260 20 36 27 Remotely . | . . . . Salvage Created 346 | . 158 132 56 Parts 20 | . 10 7 3 Haulers Intercepted . | . . . . Recyclers Shooed 1 | . . 1 . Parts Field Recycled . | . . . . Retrieved Matter . | . . . . Parts Self-Destructed . | . . . . Prevented . | . . . . Parts Restored . | . . . . Kills | -11 -10 -10 -10 ------- Run | Yrd Mat Min Sub Combat Hostiles Destroyed 12 | . 6 5 1 Guns 12 | . 6 5 1 Classes Destroyed 3 | . 2 . 1 Swarmer 6 | . 3 3 . Grunt 5 | . 3 2 . Subdweller 1 | . . . 1 Best Kill Streak 3 | . 3 3 1 Combat Bots Only 3 | . 3 3 1 Max Kills in Single Turn 1 | . 1 1 1 Gunslinging . | . . . . Exploded . | . . . . Melee . | . . . . Uniques/NPCs Destroyed . | . . . . Combat | -11 -10 -10 -10 -------- Run | Yrd Mat Min Sub Hostile Shots Fired 57 | . 30 14 13 Missed 18 | . 11 2 5 Hits 39 | . 19 12 8 Projectile 39 | . 19 12 8 AOE 2 | . . . 2 Critical Strikes 1 | . . . 1 Damage Taken 614 | . 176 121 317 Core 252 | . 33 34 185 Absorbed by Shields . | . . . . Core Remaining (%) 100 | 100 . . . Volleys Fired 39 | . 20 7 12 Largest 2 | . 2 2 2 Hottest 100 | . 100 100 70 Shots Fired 75 | . 38 14 23 Gun 75 | . 38 14 23 Cannon . | . . . . Launcher . | . . . . Special . | . . . . Kinetic 13 | . . 2 11 Thermal 62 | . 38 12 12 Explosive . | . . . . Electromagnetic . | . . . . Robot Hit Streak 17 | . 15 17 15 Robot Miss Streak 4 | . 4 1 1 Penetration Max . | . . . . Secondary Targets 1 | . . 1 . Max Gunslinging Chain 1 | . . 1 . Shots Hit Robots 49 | . 21 10 18 Core Hits 20 | . 9 7 4 Critical Kills . | . . . . Critical Parts Destroyed . | . . . . Critical Strikes 3 | . 2 . 1 Burn 3 | . 2 . 1 Melee Attacks . | . . . . Impact . | . . . . Slashing . | . . . . Piercing . | . . . . Sneak Attacks . | . . . . Combat Hostiles . | . . . . Follow-up Attacks . | . . . . Damage Inflicted 626 | . 264 138 224 Guns 626 | . 264 138 224 Cannons . | . . . . Explosions . | . . . . Melee . | . . . . Ramming . | . . . . Kinetic 135 | . . 26 109 Thermal 491 | . 264 112 115 Explosive . | . . . . Electromagnetic . | . . . . Impact . | . . . . Slashing . | . . . . Piercing . | . . . . Highest Corruption . | . . . . Average Corruption . | . . . . Corruption Purged . | . . . . Corruption Blocked . | . . . . Overload Shots . | . . . . Overflow Damage . | . . . . Projectiles . | . . . . Explosions . | . . . . Melee . | . . . . Knockbacks . | . . . . Impact . | . . . . Kinetic . | . . . . Secondary . | . . . . Self-Inflicted Damage . | . . . . Shots . | . . . . Rammed . | . . . . Targets Rammed . | . . . . Kicked . | . . . . Crushed . | . . . . Highest Temperature 327 | . 327 121 282 Average Temperature 119 | . 130 66 173 Received Heat Transfer 434 | . 36 45 353 Effects 1 | . 1 . . Energy Bleed 1 | . 1 . . Siege Activations . | . . . . Martial Activations . | . . . . Shielding Activations . | . . . . Robots Disrupted . | . . . . Combat Hostiles . | . . . . Robots Corrupted . | . . . . Combat Hostiles . | . . . . Parts Fried . | . . . . Impact Corruptions . | . . . . Robots Melted . | . . . . Combat Hostiles . | . . . . Parts Melted 4 | . 2 1 1 Heat Transferred 1665 | . 925 333 407 Parts Sabotaged . | . . . . Parts Stolen . | . . . . Parts Stripped . | . . . . Power Chain Reactions . | . . . . Alert | -11 -10 -10 -10 ------- Run | Yrd Mat Min Sub Maximum Alert Level . | . . . . Low Security (%) 100 | 100 100 100 . Level 1 . | . . . . Level 2 . | . . . . Level 3 . | . . . . Level 4 . | . . . . Level 5 . | . . . . High Security . | . . . . Max Security . | . . . . Peak Influence 121 | . 121 109 . Initial 39 | . . 39 . Average 52 | . 61 55 . Influence Increases 305 | . 185 120 . Destroy 0b10 Robot/C 220 | . 120 100 . Destroy Leader 50 | . 30 20 . Successful Hack 4 | . 4 . . Destroy Structure 1 | . 1 . . Lose Combat Pursuer 30 | . 30 . . Influence Decreases 305 | . 84 181 40 Entered New Map 83 | . . 62 21 Time Decay 222 | . 84 119 19 Squads Dispatched 3 | . 3 . . Investigation 2 | . 2 . . Extermination . | . . . . Reinforcement 1 | . 1 . . Assault . | . . . . Garrison . | . . . . Intercept . | . . . . Searches Triggered . | . . . . Construction Impeded . | . . . . Haulers Reinforced . | . . . . Active Scanning Responses . | . . . . Cargo Convoy Interrupts . | . . . . Stealth | -11 -10 -10 -10 --------- Run | Yrd Mat Min Sub Distress Signals . | . . . . Communications Jammed . | . . . . Distress Signals . | . . . . Times Spotted 17 | . 11 4 2 Peak Tracking Total 3 | . 3 2 2 Tactical Retreats 2 | . 2 . . Traps | -11 -10 -10 -10 ------- Run | Yrd Mat Min Sub Traps Triggered 2 | . 1 . 1 Indirectly . | . . . . Trap Hack Attempts . | . . . . Triggered . | . . . . Disarmed . | . . . . Reprogrammed . | . . . . Reused . | . . . . Traps Extracted . | . . . . Installed . | . . . . Triggered . | . . . . Machines | -11 -10 -10 -10 ---------- Run | Yrd Mat Min Sub Machines Disabled . | . . . . Max in Single Turn . | . . . . Machines Repaired . | . . . . Machines Dismantled . | . . . . Machines Sabotaged . | . . . . Overloaded Fab Kills . | . . . . Hacking | -11 -10 -10 -10 --------- Run | Yrd Mat Min Sub Machines Accessed 2 | . 2 . . Terminals 2 | . 2 . . Fabricators . | . . . . Repair Stations . | . . . . Recycling Units . | . . . . Scanalyzers . | . . . . Garrison Access . | . . . . Total Hacks 3 | . 3 . . Successful 1 | . 1 . . Failed 2 | . 2 . . Catastrophic 1 | . 1 . . Database Lockouts . | . . . . Manual . | . . . . Terminals 3 | . 3 . . Fabricators . | . . . . Repair Stations . | . . . . Recycling Units . | . . . . Scanalyzers . | . . . . Garrison Access . | . . . . Terminal Hacks 1 | . 1 . . Locate Traps 1 | . 1 . . Fabricator Hacks . | . . . . Repair Station Hacks . | . . . . Recycling Unit Hacks . | . . . . Scanalyzer . | . . . . Garrison Access Hacks . | . . . . Unauthorized Hacks . | . . . . Terminals . | . . . . Fabricators . | . . . . Repair Stations . | . . . . Recycling Units . | . . . . Scanalyzers . | . . . . Garrison Access . | . . . . Data Cores Recovered . | . . . . Used . | . . . . Hacking Detections 1 | . 1 . . Full Trace Events 1 | . 1 . . Feedback Events . | . . . . Feedback Blocked . | . . . . Robot Schematics Acquired . | . . . . Robots Built . | . . . . Authchips . | . . . . Time . | . . . . Total Robot Build Rating . | . . . . Part Schematics Acquired . | . . . . Parts Built . | . . . . Authchips . | . . . . Time . | . . . . Total Part Build Rating . | . . . . Part Studies Acquired . | . . . . Parts Repaired . | . . . . Time . | . . . . Parts Recycled . | . . . . Recycled Matter . | . . . . Retrieved Matter . | . . . . Retrieved Components . | . . . . Parts Scanalyzed . | . . . . Part Schematics Acquired . | . . . . Parts Damaged . | . . . . Bothacking | -11 -10 -10 -10 ------------ Run | Yrd Mat Min Sub Used RIF Installer . | . . . . Robots Hacked . | . . . . Non-combat . | . . . . Combat . | . . . . Robot Hacks Applied . | . . . . Relay Couplers Released . | . . . . Fabnet Peak Effective % . | . . . . Robots Rewired . | . . . . Allies Hacked . | . . . . Hacks Repelled . | . . . . Allies | -11 -10 -10 -10 -------- Run | Yrd Mat Min Sub Total Allies . | . . . . Largest Group . | . . . . Highest-Rated Group . | . . . . Highest-Rated Ally . | . . . . Total Orders . | . . . . Ally Attacks . | . . . . Total Damage . | . . . . Kills . | . . . . Allies Corrupted . | . . . . Allies Melted . | . . . . Intel | -11 -10 -10 -10 ------- Run | Yrd Mat Min Sub Active Infowar (turns) . | . . . . Robot Analysis Total . | . . . . Derelict Logs Recovered 3 | . . 3 . Drone Launches . | . . . . Drone Recoveries . | . . . . Exploration | -11 -10 -10 -10 ------------- Run | Yrd Mat Min Sub Turns Passed 664 | 43 190 242 189 Spaces Moved 532 | 34 129 237 132 Core 2 | 2 . . . Treads . | . . . . Legs . | . . . . Wheels 530 | 32 129 237 132 Hover . | . . . . Flight . | . . . . Fastest Speed 50 | 50 90 90 90 Average Speed 89 | 87 90 90 90 Slowest Speed 90 | 90 90 90 90 Overloaded Moves . | . . . . Propulsion Burnouts . | . . . . Robots Hopped . | . . . . Potential Cave-ins . | . . . . Cave-ins Triggered . | . . . . Exploration Rate (%) 23 | 3 27 58 7 Regions Visited 3 Branch Regions 2 Pre-discovered Areas 2 | . . 2 . Known Exits Taken 1 | . . 1 . Unknown Exits Taken 2 | 1 1 . . Scrap Searched 1 | . . 1 . Spaces Dug . | . . . . Terrain Destroyed . | . . . . Melee . | . . . . Projectile . | . . . . AOE . | . . . . Terrain Rammed . | . . . . Walls Destroyed . | . . . . Machines Disabled . | . . . . Actions | -11 -10 -10 -10 --------- Run | Yrd Mat Min Sub Total 641 | 44 167 252 178 Wait 39 | . 3 2 34 Move 529 | 33 128 236 132 Hop . | . . . . Pick Up 15 | 5 8 2 . Fast Attach 6 | 5 . 1 . Attach 2 | 1 . 1 . Detach . | . . . . Swap 3 | . 2 1 . Drop 8 | . 6 2 . Fire 39 | . 20 7 12 Melee . | . . . . Ram . | . . . . Kick . | . . . . Crush . | . . . . Escape Stasis . | . . . . Rewire . | . . . . Trap . | . . . . Miscellaneous . | . . . . Route ------- -11/Scrapyard -10/Materials -10/Mines (discovered 2 exits: *Mat / *Sub) -10/Subcaves History --------- Turn | Location | Event 18 | -11/Scrapyard | Discovered new exit (range 16) 44 | -11/Scrapyard | Entered Materials 222 | -10/Materials | Discovered new exit (range 7) 234 | -10/Materials | Entered Mines 236 | -10/Mines | Met a Derelict bent on vengeance 307 | -10/Mines | Build established: Mutant 384 | -10/Mines | Learned 2 Materials zone layouts 404 | -10/Mines | Discovered new exit (range 14) 410 | -10/Mines | Learned location of Storage (-7) 415 | -10/Mines | Identified exit to Materials 427 | -10/Mines | Learned location of Zion (-7) 463 | -10/Mines | Discovered new exit (range 9) 476 | -10/Mines | Identified exit to Subcaves 476 | -10/Mines | Entered Subcaves 477 | -10/Subcaves | Approached by a straggling Scientist 632 | -10/Subcaves | Core integrity fell below 50% 650 | -10/Subcaves | Core integrity fell below 20% 665 | -10/Subcaves | Destroyed by CH-AZ4(R) with Subdweller Shrapnel Launcher Last Messages --------------- back to the UFD." UX-JRQ(c): "I think it's somewhere north of here" 00573_ Triggered Piercing Trap. 00573_ Spikes shoot up from the floor. 00573_ Critical hit (Impale). UX-JRQ(c): "I think it's somewhere north of here" 00631_ 1Y-2RT(R) suffers critical hit (Burn). 00643_ Subatomizers dissect the Machine Analyzer. 00643_ Critical hit (Meltdown: +290). 00649_ Sub. Power Source melted. 00649_ 1Y-2RT(R) destroyed. 00652_ Acquired 27 matter. 00658_ Subatomizers dissect the Disposable Heat Sink. 00661_ Wheel destroyed. 00664_ CH-AZ4(R) affixes Scrap Shield Fragment to Scrap Shield. Map ----- +----------------------------------------------------+ | ????????????????? "????????? ## ## ##?? | | ??????????????????#"#??????## ??? | | ??????????????????#""####### #?????? | | ??????????????????# # ## # #????????? | | ??????????????????# #?????????? | | ??????????????????## # ## ###?????????? | | ???????????????????######## #??????????? | | ????????????????????????### #??????????? | | ??????????????????????#?# ##??????????? | | ????????????????????### ## #???????????? | | ????????????????????# ##???????????? | | ???????????????????## ### ##????????????? | | ???????????????????# ??# #????????????? | | ???????????????????? ??## ##????????????? | | ???????????????????## #### ##????????????? | | ??????????????????## ## #????????????? | | ??????????????????# ###????????????? | | ??????????????????# ##???????????? | | ??????????????????## ##??????????? | | ???????????????????# #??????????? | | ????????##########?## ######??????????? | | ????????#<<<<<< ## ##??????????????? | | ????????" < << ## ####???????????? | | ??????????<<< ; # ###?????????? | | ????????? << << ;;=; #?????????? | | ?????????#" "# @ %; ##?????????? | | ?????????????### & ; ; ##?????????? | | ??????????????#;!%; ;# #?????????? | | ??????????????#;]R! ;## ##?????????? | | ??????????????#; ;### #??????????? | | ??????????????## #< ##?## ##?????????? | | ???????????????#####< #???## #?????????? | | ???????????????????# #????# #?????????? | | ???????????????????## #???## ###???????? | | ????????????????????# ##### #???????? | | ????????????????????## #???????? | | ???????????????###?## ##???????? | | ??????????????## ### ##????????? | | ??????????????# ## #?????????? | | ??????????????# ### #?????????? | | ??????????????## #?## #?????????? | | ???????????????### #??# ###?????????? | | ?????????????????## ##??# #???????????? | | ??????????????????###?### ##???????????? | | ?????????????????????## ##????????????? | | ?????????????????????# ##?????????????? | | ????????????????????# ##??????????????? | | ???????????????????# #???????????????? | | ???????????????????# ##???????????????? | | ???????????????????#######????????????????? | +----------------------------------------------------+ Best States ------------- Heat Dissipation 25 Energy Generation 10 Energy Capacity 125 Matter Stores 300 Matter Capacity 300 Sight Range 16 Terrain Scan Density 10 Evasion (%) 42 Item Schematics ----------------- None Robot Schematics ------------------ None Fabricated ------------ Nothing Repaired ---------- Nothing Studied --------- None Alien Tech Used ----------------- None Achievements -------------- None Challenges ------------ None Game ------ Seed GuidanceNuclearDatajack Manual? 0 Play Time 00:09:44 Cumulative 34.3 hours Start 2026.04.30 @ 07:42:47 End 2026.04.30 @ 07:50:23 Sessions 1 Manual Loads 0 Difficulty Rogue Special Mode None Game No. 38 Rogue 38 Adventurer 0 Explorer 0 Win Type - Total 1 Types 1/0/0/0/0/0/0/0/0/0 Lore% 30 Gallery% 33 Achievement% 30 Wizard Run 0 Options --------- Layout 1 ASCII 0 Keyboard 0 Movement Mouse Keybinds 0 Fullscreen 2 Font 24/Smallcaps Map View 50x35 Zoom Use 0% Tactical HUD 1 Map Filters NONE Filters NONE Steam 1 RUN: bbd419c2-b2a5-4b29-8b91-0d5f5772933a